bitfinex/quotes_SOLUSD_20260108
["timestamp","ask_amount","ask_price","bid_price","bid_amount"]
[1767839196421,2.86416616,137.35,137.32,8.00079557]
[1767839196937,0.68987837,137.35,137.32,8.00079557]
[1767839197121,2.86416616,137.35,137.32,8.00079557]
[1767839197720,0.68987837,137.43,137.37,0.71856332]
[1767839197939,0.2,137.44,137.39,2.6007725]
[1767839198242,2.86416616,137.46,137.41,0.42648471]
[1767839198418,2.86416616,137.46,137.41,21.00358402]
[1767839199939,2.86416616,137.46,137.41,21.6096048]
[1767839201316,7.4739746,137.48,137.43,0.74818235]
[1767839201317,0.88987837,137.48,137.43,0.74818235]
[1767839201521,0.68987837,137.62,137.41,7.56142245]
[1767839201724,2.86416616,137.52,137.46,0.14216157]
[1767839201939,2.86416616,137.52,137.46,0.42648471]
[1767839202128,0.68987837,137.52,137.46,0.42648471]
[1767839202328,0.68987837,137.51,137.46,0.42648471]
[1767839202532,0.68987837,137.51,137.46,2.6007725]
[1767839202925,0.68987837,137.51,137.46,9.87518623]
[1767839204433,2.86416616,137.53,137.48,0.42648471]
[1767839204641,0.68987837,137.53,137.48,2.6007725]
[1767839205340,0.68987837,137.52,137.48,0.42648471]
[1767839205924,24.85485488,137.56,137.48,0.42648471]
[1767839205925,0.68987837,137.57,137.51,2.6007725]
[1767839206144,0.68987837,137.57,137.53,0.42648471]
[1767839206345,0.68987837,137.56,137.51,13.56432314]
[1767839206549,0.68987837,137.56,137.52,0.42648471]
[1767839207148,0.68987837,137.56,137.52,9.87229965]
[1767839207347,0.68987837,137.56,137.53,2.17428779]
[1767839207546,0.68987837,137.56,137.52,9.87229965]
[1767839207945,0.68987837,137.56,137.52,7.69801186]
[1767839208147,0.68987837,137.56,137.52,0.42648471]
[1767839208628,0.68987837,137.56,137.52,2.6007725]
[1767839209245,0.68987837,137.55,137.5,0.42648471]
[1767839209452,0.68987837,137.55,137.51,2.17428779]
[1767839209837,0.68987837,137.65,137.55,11.6438717]
[1767839210041,2.17428779,137.76,137.54,2.17428779]
[1767839210042,0.68987837,137.66,137.58,0.14216157]
[1767839210257,0.68987837,137.66,137.62,0.42648471]
[1767839210549,0.68987837,137.66,137.61,6.22413248]
[1767839211651,0.68987837,137.66,137.6,19.07764777]
[1767839211652,0.68987837,137.64,137.6,19.07764777]
[1767839211851,0.68987837,137.64,137.6,5.79764777]
[1767839212255,0.68987837,137.64,137.6,13.06502038]
[1767839214532,0.68987837,137.64,137.6,5.79764777]
[1767839216157,7.36998907,137.69,137.57,13.28]
[1767839216359,0.68987837,137.66,137.62,5.79764777]
[1767839218453,0.18987837,137.66,137.62,5.79764777]
[1767839218640,0.18987837,137.66,137.62,0.42648471]
[1767839219038,13.25189835,137.66,137.61,5.79764777]
[1767839220165,24.57281449,137.76,137.66,0.68987837]
[1767839220166,17.05516672,137.76,137.66,0.68987837]
[1767839220459,0.2,137.8,137.71,5.79764777]
[1767839220460,5.79764777,137.77,137.71,5.79764777]
[1767839220664,5.79764777,137.78,137.72,5.79764777]
[1767839220858,0.2,137.8,137.77,5.73764778]
[1767839221058,0.2,137.8,137.72,0.14216157]
[1767839221365,0.2,137.82,137.79,5.79764777]
[1767839221570,7.4559816,137.82,137.78,5.07264777]
[1767839221762,13.28,137.81,137.78,4.31252614]
[1767839222166,20.53660512,137.81,137.78,4.31252614]
[1767839223866,20.53660512,137.81,137.76,5.79764777]
[1767839223867,38.67752377,137.81,137.76,5.79764777]
[1767839224073,0.42648471,137.8,137.75,5.79764777]
[1767839224258,0.42648471,137.8,137.7,0.14216157]
[1767839224259,0.42648471,137.8,137.76,5.79764777]
[1767839224458,13.26,137.79,137.78,5.79764777]
[1767839224772,13.26,137.79,137.77,5.79764777]
[1767839225474,7.45595477,137.82,137.77,5.79764777]
[1767839225673,6.6801107,137.81,137.78,5.79764777]
[1767839225850,6.6801107,137.81,137.79,5.79764777]
[1767839226057,13.26,137.8,137.79,5.79764777]
[1767839226371,0.2,137.82,137.79,5.79764777]
[1767839226568,0.2,137.82,137.77,7.93464844]
[1767839226569,13.26,137.81,137.77,5.79764777]
[1767839229075,5.79764777,137.79,137.73,5.79764777]
[1767839229460,5.79764777,137.78,137.7,0.6764378]
[1767839229660,13.26,137.77,137.72,5.79764777]
[1767839230553,13.26,137.76,137.72,5.79764777]
[1767839232659,13.26,137.76,137.71,5.79764777]
[1767839232866,5.79764777,137.77,137.71,5.79764777]
[1767839233063,19.05764777,137.76,137.71,5.79764777]
[1767839233479,13.26,137.76,137.71,5.79764777]
[1767839234688,20.51931413,137.76,137.71,5.79764777]
[1767839234888,20.51931413,137.76,137.7,7.93841141]
[1767839235069,20.51931413,137.76,137.71,5.79764777]
[1767839235786,13.26,137.76,137.71,13.05919736]
[1767839236088,13.26,137.75,137.72,5.79764777]
[1767839236390,7.25757774,137.79,137.73,6.47408557]
[1767839236585,13.26,137.78,137.73,11.31370411]
[1767839236806,13.26,137.78,137.73,4.05321929]
[1767839237791,10.63435923,137.79,137.73,4.05321929]
[1767839237792,10.63435923,137.79,137.73,7.93696714]
[1767839237969,10.63435923,137.79,137.74,3.37678149]
[1767839238293,13.26,137.78,137.73,11.31374863]
[1767839238672,13.26,137.77,137.73,11.31374863]
[1767839239296,13.26,137.77,137.74,3.37678149]
[1767839240701,13.26,137.77,137.71,4.05321929]
[1767839240702,3.37678149,137.76,137.71,4.05321929]
[1767839241000,3.37678149,137.76,137.71,3.37678149]
[1767839241784,20.51861144,137.77,137.71,3.37678149]
[1767839242078,10.63582949,137.76,137.71,3.37678149]
[1767839243794,7.259048,137.76,137.71,3.37678149]
[1767839244190,10.63582949,137.76,137.71,3.37678149]
[1767839244993,3.37678149,137.76,137.71,10.63836479]
[1767839245195,18.1455369,137.78,137.73,4.05321929]
[1767839245196,3.37678149,137.78,137.73,4.05321929]
[1767839245504,13.26,137.77,137.74,4.05321929]
[1767839246398,13.26,137.76,137.74,4.05321929]
[1767839246789,13.26,137.75,137.74,4.05321929]
[1767839247305,13.26,137.76,137.74,4.05321929]
[1767839247708,13.26,137.76,137.74,0.6764378]
[1767839247906,10.05689219,137.78,137.74,0.6764378]
[1767839248085,13.26,137.77,137.74,0.6764378]
[1767839248286,16.63678149,137.77,137.73,7.26026636]
[1767839249180,16.63678149,137.77,137.73,7.93670416]
[1767839249601,3.37678149,137.75,137.71,0.6764378]
[1767839250305,3.37678149,137.75,137.71,7.93795254]
[1767839250998,3.37678149,137.74,137.71,7.93795254]
[1767839251298,3.37678149,137.75,137.71,7.93795254]
[1767839251884,3.37678149,137.75,137.71,0.6764378]
[1767839252195,3.37678149,137.74,137.71,0.6764378]
[1767839252600,7.25902383,137.76,137.71,0.6764378]
[1767839252795,3.37678149,137.74,137.71,0.6764378]
[1767839253299,3.37678149,137.73,137.69,7.93915765]
[1767839254708,3.37678149,137.7,137.65,0.67649833]
[1767839254885,3.37678149,137.69,137.65,0.67649833]
[1767839255801,3.37678149,137.7,137.66,7.26395996]
[1767839256687,3.37678149,137.69,137.66,7.26395996]
[1767839257007,3.37678149,137.69,137.66,7.94045829]
[1767839258378,39.67349787,137.76,137.66,7.94045829]
[1767839258379,0.2,137.82,137.74,0.8186599]
[1767839258582,13.87333062,137.84,137.82,0.67649833]
[1767839258797,0.68856342,137.87,137.82,17.31327982]
[1767839258998,0.68856342,137.87,137.82,13.93649833]
[1767839259204,4.06534491,137.87,137.82,13.93649833]
[1767839260283,0.68856342,137.87,137.82,17.31327982]
[1767839260590,0.68856342,137.87,137.82,23.32999975]
[1767839260908,0.68856342,137.87,137.82,30.58578654]
[1767839261899,17.3353184,137.87,137.82,13.93649833]
[1767839262080,17.3353184,137.87,137.82,13.26]
[1767839262081,0.78856342,137.86,137.82,13.26]
[1767839263709,8.04247114,137.86,137.82,13.26]
[1767839264511,0.68856342,137.85,137.82,13.26]
[1767839266222,9.98206484,137.83,137.82,12.09856342]
[1767839266399,9.39350142,137.83,137.78,13.93649833]
[1767839266721,9.39350142,137.82,137.78,13.93649833]
[1767839266897,9.39350142,137.82,137.79,0.67649833]
[1767839269028,16.6493787,137.82,137.79,0.67649833]
[1767839270399,9.39350142,137.81,137.78,13.26]
[1767839270720,9.39350142,137.81,137.78,13.93649833]
[1767839271810,9.39350142,137.79,137.75,13.93649833]
[1767839272806,9.39350142,137.76,137.75,13.26]
[1767839273006,9.39350142,137.76,137.73,0.67649833]
[1767839273230,0.48466778,137.79,137.73,0.67649833]
[1767839273523,9.39350142,137.76,137.73,0.67649833]
[1767839274428,9.39350142,137.75,137.73,0.67649833]
[1767839275227,16.65305254,137.75,137.72,13.26]
[1767839275601,16.65305254,137.75,137.72,13.93649833]
[1767839282400,7.25900116,137.76,137.72,13.93649833]
[1767839282600,9.39350142,137.75,137.72,13.93649833]
[1767839283006,9.39350142,137.74,137.72,13.93649833]
[1767839283814,16.65367319,137.74,137.72,13.93649833]
[1767839284117,16.65367319,137.74,137.72,0.67649833]
[1767839285532,16.65367319,137.74,137.7,13.97228878]
[1767839285915,9.39350142,137.73,137.7,13.97228878]
[1767839287133,16.65440343,137.73,137.7,13.97228878]
[1767839288233,16.65440343,137.73,137.71,0.71228878]
[1767839289715,9.39350142,137.73,137.71,0.71228878]
[1767839291929,16.65454693,137.73,137.71,0.71228878]
[1767839293738,16.65454693,137.73,137.7,13.94599803]
[1767839294921,17.1279868,137.73,137.7,13.26]
[1767839295122,9.39350142,137.71,137.69,0.68599803]
[1767839296238,9.39350142,137.7,137.66,0.68599803]
[1767839296419,9.39350142,137.69,137.66,0.68599803]
[1767839297031,10.10556997,137.69,137.63,9.39350142]
[1767839297336,9.39350142,137.68,137.62,30.06189373]
[1767839297536,9.95036939,137.68,137.62,20.52623074]
[1767839297740,9.39350142,137.65,137.58,0.1]
[1767839297927,9.39350142,137.64,137.58,9.49350142]
[1767839298126,16.65885394,137.64,137.59,7.41004789]
[1767839298327,16.65885394,137.64,137.59,16.66138774]
[1767839298531,13.06548066,137.64,137.59,13.06801446]
[1767839299042,13.06548066,137.64,137.6,0.68599803]
[1767839300943,13.03548067,137.64,137.61,0.68599803]
[1767839303044,13.59539103,137.64,137.6,0.68599803]
[1767839304135,13.59539103,137.64,137.59,0.68599803]
[1767839304136,13.62790014,137.62,137.59,0.68599803]
[1767839304642,9.99388381,137.62,137.58,0.78599803]
[1767839305950,7.26744186,137.6,137.58,0.1]
[1767839309349,7.26744186,137.6,137.58,0.1]
[1767839309750,9.43355367,137.6,137.58,0.1]
[1767839311338,10.13923437,137.61,137.58,0.1]
[1767839313356,2.7115849,137.66,137.61,0.67959617]
[1767839313551,2.16611181,137.63,137.6,0.67959617]
[1767839314745,9.43221742,137.63,137.6,0.67959617]
[1767839315956,2.88969034,137.62,137.58,0.77959617]
[1767839318435,7.99038068,137.62,137.58,0.77959617]
[1767839318653,10.15649249,137.62,137.58,0.77959617]
[1767839320060,0.54547309,137.61,137.58,0.1]
[1767839320245,0.54547309,137.61,137.57,1e-08]
[1767839320246,2.61434815,137.59,137.57,1e-08]
[1767839320446,2.16611181,137.58,137.57,1e-08]
[1767839320950,2.61434815,137.59,137.57,1e-08]
[1767839321353,7.26849832,137.58,137.57,1e-08]
[1767839321753,9.43461013,137.58,137.55,0.67959617]
[1767839322264,2.16611181,137.57,137.55,0.67959617]
[1767839322464,9.43426716,137.59,137.55,0.67959617]
[1767839324967,9.43473565,137.58,137.55,0.67959617]
[1767839325267,9.43432017,137.59,137.55,0.67959617]
[1767839329464,10.15512764,137.59,137.55,0.67959617]
[1767839331666,2.61532825,137.58,137.54,7.27060632]
[1767839331871,2.16611181,137.57,137.54,0.82175774]
[1767839332474,2.16611181,137.57,137.54,0.67959617]
[1767839333772,2.13611182,137.57,137.55,0.67959617]
[1767839334273,9.40536192,137.57,137.55,0.67959617]
[1767839334775,7.2692501,137.57,137.55,0.67959617]
[1767839334979,9.43536191,137.57,137.55,0.67959617]
[1767839336473,2.88969034,137.59,137.55,0.67959617]
[1767839336678,0.72357853,137.59,137.55,0.67959617]
[1767839336855,38.71496815,137.61,137.53,13.42216157]
[1767839336856,2.16611181,137.57,137.53,13.42216157]
[1767839337260,2.88969034,137.57,137.53,13.28]
[1767839337554,0.72357853,137.56,137.53,13.28]
[1767839337777,2.88969034,137.56,137.53,13.28]
[1767839338357,2.88969034,137.56,137.52,0.42648471]
[1767839338769,2.88969034,137.56,137.53,0.67959617]
[1767839340383,0.72357853,137.56,137.53,0.67959617]
[1767839342878,7.99313783,137.56,137.53,0.67959617]
[1767839347582,7.2695593,137.56,137.53,0.67959617]
[1767839351288,10.12989861,137.56,137.53,0.67959617]
[1767839351483,2.86033931,137.55,137.52,0.69263976]
[1767839352183,2.16611181,137.54,137.51,14.07263976]
[1767839353185,10.13148015,137.53,137.51,13.38]
[1767839354163,10.13148015,137.53,137.47,61.9]
[1767839354164,28.30933225,137.53,137.47,61.9]
[1767839354383,2.16611181,137.52,137.49,0.69263976]
[1767839355172,9.43812644,137.52,137.49,0.69263976]
[1767839355491,7.96624213,137.52,137.49,0.69263976]
[1767839355897,0.6942275,137.52,137.49,0.69263976]
[1767839356773,9.4374465,137.53,137.49,0.69263976]
[1767839356774,10.131674,137.53,137.49,0.69263976]
[1767839356973,6.6801107,137.51,137.38,30.21357616]
[1767839357166,3.7998516,137.32,137.2,13.28]
[1767839357370,3.7998516,137.32,137.23,2.16611181]
[1767839357569,1.26089719,137.32,137.27,2.16611181]
[1767839357787,1.26089719,137.32,137.21,14.00880985]
[1767839357788,3.8058494,137.39,137.28,14.00843822]
[1767839357991,9.4455731,137.38,137.29,2.16611181]
[1767839358179,9.4455731,137.38,137.28,13.28]
[1767839358376,2.16611181,137.34,137.28,13.28]
[1767839358569,3.39805156,137.34,137.28,13.28]
[1767839359173,3.8058494,137.31,137.28,13.28]
[1767839360385,3.8058494,137.31,137.29,0.14216157]
[1767839361093,14.48702381,137.31,137.28,13.28]
[1767839362089,11.08897225,137.31,137.27,0.14216157]
[1767839362394,11.08897225,137.31,137.28,13.28]
[1767839362598,14.48702381,137.31,137.28,13.28]
[1767839364983,15.18125131,137.31,137.28,13.28]
[1767839365382,11.78319975,137.31,137.28,13.28]
[1767839365583,15.18125131,137.31,137.28,13.28]
[1767839366099,0.6942275,137.3,137.28,13.28]
[1767839366401,0.6942275,137.3,137.28,12.555]
[1767839366703,11.08891529,137.31,137.28,12.555]
[1767839368092,15.18119435,137.31,137.28,12.555]
[1767839368800,3.39805156,137.3,137.28,12.555]
[1767839368986,15.18119435,137.31,137.28,12.555]
[1767839369695,14.48696685,137.31,137.28,13.24763976]
[1767839370791,7.28020545,137.36,137.28,19.98132077]
[1767839370987,4.09227906,137.39,137.33,0.28432314]
[1767839371184,18.88965571,137.4,137.35,0.14216157]
[1767839371378,18.88965571,137.4,137.35,0.10716144]
[1767839371702,7.97238859,137.4,137.36,13.3]
[1767839371897,7.27816109,137.4,137.36,13.3]
[1767839372608,7.27816109,137.4,137.36,13.24005]
[1767839375226,0.2,137.46,137.4,0.42648471]
[1767839375426,0.2,137.46,137.45,0.14216157]
[1767839375596,0.2,137.46,137.45,16.84021313]
[1767839375797,3.39805156,137.51,137.45,16.84021313]
[1767839375798,0.70603943,137.52,137.45,16.84021313]
[1767839376030,0.70603943,137.52,137.47,3.39805156]
[1767839376196,0.70603943,137.52,137.46,3.39805156]
[1767839376503,0.70603943,137.52,137.46,9.44025691]
[1767839376919,7.27219838,137.51,137.47,13.3]
[1767839377112,7.27219838,137.51,137.49,9.44025691]
[1767839377416,7.27219838,137.51,137.5,13.3]
[1767839378309,7.27114084,137.53,137.5,13.3]
[1767839378505,0.70603943,137.59,137.53,0.42648471]
[1767839378729,0.70603943,137.61,137.56,9.44025691]
[1767839378901,0.70603943,137.63,137.58,9.44025691]
[1767839379098,6.10525144,137.72,137.53,4.963761]
[1767839379099,0.70603943,137.6,137.59,13.28]
[1767839379303,0.70603943,137.6,137.56,0.14216157]
[1767839379496,10.14629634,137.6,137.54,9.44025691]
[1767839379692,0.70603943,137.59,137.55,13.42216157]
[1767839380503,7.26849832,137.58,137.55,13.42216157]
[1767839381607,10.14629634,137.56,137.4,67.65867124]
[1767839381914,0.70603943,137.55,137.51,9.44025691]
[1767839382110,0.70603943,137.62,137.54,9.44025691]
[1767839382304,7.9725559,137.62,137.59,9.44025691]
[1767839382902,7.9725559,137.62,137.58,9.44025691]
[1767839385005,13.42216157,137.68,137.61,9.44025691]
[1767839385006,0.70603943,137.68,137.61,9.44025691]
[1767839385212,0.70603943,137.68,137.62,9.44025691]
[1767839385812,0.70603943,137.68,137.63,9.44025691]
[1767839385997,7.26427429,137.66,137.62,9.44025691]
[1767839386912,26.13099946,137.66,137.62,9.44025691]
[1767839388509,0.43716631,137.67,137.62,9.44025691]
[1767839388708,0.43716631,137.67,137.63,9.44025691]
[1767839388914,0.43716631,137.67,137.64,9.44025691]
[1767839389708,0.43716631,137.67,137.65,9.44025691]
[1767839390024,0.2,137.73,137.67,0.28432314]
[1767839390225,8.18124496,137.73,137.68,9.44025691]
[1767839390414,9.44025691,137.75,137.68,9.44025691]
[1767839390921,13.28,137.76,137.68,9.44025691]
[1767839391126,9.44025691,137.75,137.68,9.44025691]
[1767839391825,18.1511974,137.74,137.68,9.44025691]
[1767839392015,25.41125257,137.74,137.68,9.44025691]
[1767839392513,26.13179352,137.74,137.68,9.44025691]
[1767839393512,0.72054095,137.72,137.66,0.14216157]
[1767839393718,0.72054095,137.7,137.65,10.1412732]
[1767839394524,0.72054095,137.7,137.64,9.58241848]
[1767839394912,0.72054095,137.69,137.64,9.58241848]
[1767839395525,7.98370278,137.69,137.64,9.44025691]
[1767839396516,7.98370278,137.69,137.62,13.56432314]
[1767839396517,0.72054095,137.68,137.62,22.72025691]
[1767839396917,0.72054095,137.68,137.62,9.44025691]
[1767839397523,1.0,137.67,137.62,9.44025691]
[1767839397727,8.98481439,137.67,137.62,9.44025691]
[1767839397930,8.98481439,137.67,137.63,9.44025691]
[1767839398515,0.72054095,137.66,137.63,9.44025691]
[1767839398812,1.0,137.67,137.64,9.44025691]
[1767839399012,0.72054095,137.74,137.66,0.14216157]
[1767839399214,0.1,137.86,137.66,0.14216157]
[1767839399215,0.72054095,137.76,137.72,9.44025691]
[1767839399619,0.72054095,137.76,137.71,9.44025691]
[1767839399822,0.72054095,137.75,137.71,9.44025691]
[1767839400115,7.97912908,137.77,137.72,9.44025691]
[1767839400316,0.72054095,137.76,137.72,9.44025691]
[1767839400645,0.72054095,137.75,137.65,6.6801107]
[1767839400817,0.72054095,137.75,137.69,9.44025691]
[1767839401213,0.72054095,137.75,137.67,7.40553492]
[1767839401415,0.72054095,137.73,137.66,7.69058643]
[1767839401734,0.72054095,137.73,137.65,38.1011427]
[1767839401735,0.72054095,137.7,137.64,9.44025691]
[1767839401937,9.44025691,137.71,137.58,37.06714931]
[1767839401938,0.72054095,137.68,137.59,18.16943719]
[1767839402129,16.70294846,137.69,137.6,9.44025691]
[1767839402130,0.66179518,137.66,137.6,9.44025691]
[1767839402329,0.66179518,137.65,137.6,9.44025691]
[1767839402923,0.66179518,137.64,137.59,9.44025691]
[1767839403117,0.66179518,137.64,137.6,9.44025691]
[1767839403736,0.66179518,137.64,137.59,7.26780536]
[1767839403932,68.69731203,137.69,137.63,9.44025691]
[1767839403933,0.66179518,137.66,137.63,9.44025691]
[1767839404318,0.66179518,137.66,137.62,9.44025691]
[1767839404732,16.70396874,137.68,137.62,9.44025691]
[1767839404936,34.86201638,137.68,137.61,9.86674162]
[1767839405132,9.44025691,137.66,137.6,9.44025691]
[1767839405333,9.44025691,137.65,137.59,9.44025691]
[1767839405936,7.26532984,137.64,137.59,9.44025691]
[1767839406134,7.26532984,137.64,137.58,9.44025691]
[1767839406337,34.86891136,137.64,137.58,9.44025691]
[1767839406524,9.44025691,137.63,137.57,9.44025691]
[1767839406842,0.66179518,137.62,137.57,16.70914537]
[1767839407043,0.66179518,137.62,137.59,9.44025691]
[1767839407431,26.13377813,137.64,137.59,9.44025691]
[1767839407941,7.97045352,137.64,137.6,9.44025691]
[1767839408137,0.70512368,137.63,137.6,9.44025691]
[1767839410347,0.70512368,137.63,137.59,9.44025691]
[1767839411940,7.97099685,137.63,137.59,9.44025691]
[1767839412140,0.70512368,137.62,137.58,9.44025691]
[1767839412644,0.70512368,137.62,137.57,7.26896684]
[1767839412948,0.70512368,137.62,137.57,9.58241848]
[1767839413143,0.70512368,137.62,137.57,0.28432314]
[1767839413351,0.70512368,137.6,137.55,16.71018921]
[1767839413532,0.70512368,137.6,137.55,9.44025691]
[1767839414140,0.70512368,137.59,137.55,9.44025691]
[1767839417128,7.97215992,137.61,137.57,9.44025691]
[1767839417328,7.26649807,137.62,137.58,9.44025691]
[1767839418250,7.97162175,137.62,137.58,9.44025691]
[1767839418746,0.70512368,137.61,137.57,7.26890381]
[1767839418931,0.70512368,137.61,137.58,5.79951949]
[1767839419353,0.70512368,137.61,137.57,13.0684233]
[1767839420024,0.70512368,137.61,137.56,8.21557806]
[1767839420025,7.97209984,137.61,137.56,8.21557806]
[1767839420345,5.55535561,137.6,137.56,5.94168106]
[1767839420545,0.70512368,137.6,137.56,5.94168106]
[1767839420727,0.70512368,137.6,137.56,13.21082946]
[1767839420933,0.70512368,137.6,137.57,5.79951949]
[1767839421537,0.70512368,137.6,137.57,13.06851734]
[1767839421739,12.82710135,137.61,137.56,13.21111113]
[1767839421932,7.97209313,137.61,137.56,13.21111113]
[1767839422132,4.85924377,137.6,137.56,13.21111113]
[1767839422650,5.56436745,137.6,137.56,13.21111113]
[1767839422862,0.70512368,137.59,137.56,7.41159164]
[1767839423147,0.70512368,137.59,137.56,13.21111113]
[1767839424164,4.86324942,137.58,137.56,13.21111113]
[1767839424352,0.70512368,137.6,137.56,0.42648471]
[1767839424558,4.86341077,137.59,137.56,0.42648471]
[1767839424858,7.97281428,137.6,137.56,0.42648471]
[1767839425051,4.86341234,137.59,137.56,7.69603543]
[1767839425256,4.86341234,137.58,137.56,7.69603543]
[1767839425454,0.70512368,137.6,137.56,7.69603543]
[1767839425639,4.86388927,137.59,137.56,13.49555492]
[1767839425835,0.70512368,137.57,137.53,13.26]
[1767839426038,5.56938924,137.57,137.53,5.79951949]
[1767839426248,7.97386675,137.58,137.53,13.76657812]
[1767839426447,4.86447617,137.57,137.53,13.76657812]
[1767839426944,4.86447617,137.57,137.54,5.79951949]
[1767839427140,0.70512368,137.57,137.54,5.79951949]
[1767839427340,12.83974359,137.57,137.54,5.79951949]
[1767839427651,7.97420954,137.57,137.53,6.49573566]
[1767839428665,4.8646538,137.56,137.52,5.79951949]
[1767839428836,4.8646538,137.55,137.52,5.79951949]
[1767839429037,7.26908586,137.57,137.52,5.79951949]
[1767839429253,4.86517192,137.56,137.52,5.79951949]
[1767839429568,4.86517192,137.55,137.52,5.79951949]
[1767839429756,7.26908586,137.57,137.52,5.79951949]
[1767839430061,12.13315129,137.56,137.52,5.79951949]
[1767839430269,4.86354657,137.55,137.52,6.49573566]
[1767839430464,4.86354657,137.55,137.51,5.79951949]
[1767839430465,0.70512368,137.55,137.51,5.79951949]
[1767839430640,0.70512368,137.55,137.5,5.79951949]
[1767839430836,0.70512368,137.55,137.52,5.79951949]
[1767839432264,0.70512368,137.55,137.51,5.79951949]
[1767839432458,7.97522424,137.55,137.51,5.79951949]
[1767839432771,0.70121973,137.54,137.51,5.79951949]
[1767839433645,0.70121973,137.54,137.5,6.49607811]
[1767839434265,0.70121973,137.53,137.49,5.79951949]
[1767839435248,0.70121973,137.53,137.49,6.49607811]
[1767839435447,0.70121973,137.53,137.5,5.79951949]
[1767839437148,7.97202243,137.54,137.49,7.96971265]
[1767839437349,7.97202243,137.54,137.5,5.79951949]
[1767839438148,0.70121973,137.53,137.5,5.79951949]
[1767839438837,7.97270348,137.53,137.49,0.69655862]
[1767839439041,7.97270348,137.53,137.5,5.79951949]
[1767839439444,7.97270348,137.53,137.49,6.49607811]
[1767839440064,7.97270348,137.53,137.49,5.79951949]
[1767839440659,7.97270348,137.53,137.5,5.79951949]
[1767839442865,37.25537829,137.55,137.48,7.27372614]
[1767839442866,0.70121973,137.52,137.48,7.27372614]
[1767839443068,5.56425627,137.53,137.48,6.49607811]
[1767839443579,5.56425627,137.53,137.48,13.76980138]
[1767839444249,5.56425627,137.52,137.48,6.49607811]
[1767839444448,0.70121973,137.52,137.48,6.49607811]
[1767839444874,5.565305,137.52,137.48,6.49607811]
[1767839445173,0.70121973,137.5,137.45,6.49607811]
[1767839445465,0.70121973,137.49,137.45,0.69655862]
[1767839445676,24.64481288,137.49,137.44,0.69655862]
[1767839445859,0.70121973,137.48,137.44,0.69655862]
[1767839446045,0.70121973,137.47,137.43,0.1]
[1767839446251,0.70121973,137.47,137.43,13.17589355]
[1767839446749,5.56359775,137.47,137.43,13.17589355]
[1767839446954,0.70121973,137.47,137.43,13.17589355]
[1767839447165,5.56878348,137.47,137.43,13.87245217]
[1767839448273,5.56878348,137.47,137.43,13.17589355]
[1767839448468,0.70121973,137.47,137.43,13.17589355]
[1767839448971,0.70121973,137.47,137.43,7.37637406]
[1767839449149,0.70121973,137.47,137.43,13.87245217]
[1767839449356,5.56539824,137.47,137.43,13.87245217]
[1767839449550,4.86417851,137.47,137.45,6.49607811]
[1767839449853,4.86417851,137.47,137.43,7.37637406]
[1767839449854,0.70121973,137.5,137.46,6.49607811]
[1767839450064,0.70121973,137.5,137.47,5.79951949]
[1767839450471,0.70121973,137.49,137.44,0.14216157]
[1767839450870,0.70121973,137.49,137.45,5.79951949]
[1767839451455,7.97453343,137.49,137.45,5.79951949]
[1767839451975,0.70121973,137.48,137.45,5.79951949]
[1767839452774,0.70121973,137.48,137.44,5.79951949]
[1767839453867,0.70121973,137.48,137.44,13.07535911]
[1767839454374,0.20121973,137.48,137.44,13.07535911]
[1767839455969,0.20121973,137.48,137.44,7.27583962]
[1767839456168,0.20121973,137.48,137.44,13.07535911]
[1767839458765,0.20121973,137.48,137.44,7.27583962]
[1767839459575,0.20121973,137.48,137.44,13.07535911]
[1767839460962,0.20121973,137.48,137.44,7.27583962]
[1767839461163,0.70121973,137.47,137.43,13.17587837]
[1767839461463,0.70121973,137.47,137.43,13.87243699]
[1767839461679,5.56733277,137.47,137.43,13.87243699]
[1767839461970,0.70121973,137.47,137.43,13.87243699]
[1767839462363,5.5676696,137.47,137.43,13.87243699]
[1767839462692,7.99804856,137.48,137.44,0.71530943]
[1767839462859,0.72404837,137.49,137.45,0.71530943]
[1767839463066,0.72404837,137.49,137.45,2.88541148]
[1767839463265,0.72404837,137.48,137.44,2.17010205]
[1767839463659,7.99803962,137.48,137.44,2.17010205]
[1767839463890,0.72404837,137.51,137.47,0.71530943]
[1767839464090,26.14216522,137.52,137.48,2.88541148]
[1767839464288,21.27596071,137.52,137.48,2.88541148]
[1767839464581,4.86804779,137.51,137.48,2.88541148]
[1767839464773,5.59209616,137.51,137.47,2.88541148]
[1767839464964,0.28432314,137.49,137.43,0.81530943]
[1767839465160,18.14804779,137.48,137.43,10.26149194]
[1767839465383,4.86804779,137.47,137.43,10.26149194]
[1767839465568,4.86804779,137.47,137.44,0.71530943]
[1767839466168,30.93785825,137.53,137.46,0.71530943]
[1767839466370,7.04181051,137.52,137.47,0.71530943]
[1767839466686,7.04181051,137.51,137.47,0.71530943]
[1767839466870,4.87170846,137.5,137.47,0.71530943]
[1767839467275,4.87170846,137.49,137.47,0.71530943]
[1767839467479,22.72281537,137.51,137.47,0.71530943]